bitfinex/quotes_SOLUSD_20220109
["timestamp","ask_amount","ask_price","bid_price","bid_amount"]
[1641701608663,1.97813149,142.68,142.57,1.87375661]
[1641701608864,10.5211,142.63,142.57,1.87375661]
[1641701609866,10.5211,142.63,142.56,35.79647746]
[1641701610265,10.5211,142.63,142.57,0.26]
[1641701610665,10.5211,142.63,142.56,35.79647746]
[1641701614269,10.5211,142.63,142.56,25.27627746]
[1641701614769,10.5211,142.63,142.57,13.38]
[1641701614971,10.5211,142.63,142.57,13.63]
[1641701615771,10.5211,142.63,142.58,10.5191]
[1641701615971,10.5211,142.63,142.59,23.42430556]
[1641701617874,10.5211,142.63,142.57,13.12]
[1641701618074,10.5211,142.63,142.57,10.12]
[1641701629186,10.5211,142.63,142.55,23.222]
[1641701629785,10.5211,142.63,142.52,99.8372]
[1641701629984,23.9929,142.62,142.52,99.8372]
[1641701630186,10.5246,142.6,142.52,99.8372]
[1641701630386,10.5246,142.6,142.52,122.699]
[1641701630887,3.0,142.59,142.52,122.699]
[1641701631089,22.8869,142.6,142.52,122.699]
[1641701631292,10.5255,142.59,142.52,122.699]
[1641701632191,10.5255,142.59,142.52,133.2223]
[1641701632991,10.5255,142.59,142.52,122.699]
[1641701633794,10.5255,142.59,142.53,10.5233]
[1641701634394,10.5255,142.59,142.53,36.63576392]
[1641701634592,36.4101,142.6,142.53,36.63576392]
[1641701634793,33.4101,142.6,142.53,36.63576392]
[1641701634993,54.93095515,142.63,142.53,26.11246392]
[1641701635196,99.32443149,142.65,142.54,22.9628]
[1641701635394,1.97813149,142.65,142.55,10.37]
[1641701635596,16.62413821,142.66,142.57,25.67778328]
[1641701635800,1.97813149,142.66,142.57,41.04578328]
[1641701635997,1.97813149,142.66,142.58,3.51]
[1641701636197,1.97813149,142.66,142.59,10.12]
[1641701636399,24.4011,142.67,142.59,10.12]
[1641701636597,24.4011,142.67,142.61,10.5172]
[1641701638026,24.4011,142.67,142.6,44.41804366]
[1641701638627,24.4011,142.67,142.6,41.41804366]
[1641701639229,24.4011,142.67,142.6,10.5179]
[1641701640832,34.9195,142.67,142.6,10.5179]
[1641701643136,24.4011,142.67,142.6,10.5179]
[1641701644435,24.4011,142.67,142.61,10.5173]
[1641701645236,34.9193,142.67,142.59,33.59403252]
[1641701645435,34.9193,142.67,142.59,10.12]
[1641701646039,34.9193,142.67,142.59,20.6389]
[1641701653552,24.4011,142.67,142.6,3.0]
[1641701653752,24.4011,142.67,142.61,10.5176]
[1641701654356,1.97813149,142.68,142.61,10.5176]
[1641701654557,1.97813149,142.68,142.61,35.0819]
[1641701655358,1.97813149,142.68,142.62,3.0]
[1641701655557,1.97813149,142.7,142.62,3.0]
[1641701655757,1.97813149,142.7,142.62,13.12]
[1641701656559,1.97813149,142.7,142.64,10.5153]
[1641701656776,12.49423149,142.7,142.63,24.4695]
[1641701657776,12.49423149,142.7,142.63,34.9855]
[1641701657977,12.49423149,142.7,142.63,24.4695]
[1641701658577,10.5161,142.7,142.63,24.4695]
[1641701659477,10.5161,142.7,142.62,10.12]
[1641701659881,10.5161,142.7,142.59,48.4659]
[1641701660279,10.5187,142.66,142.59,58.9848]
[1641701664288,10.5183,142.67,142.59,58.9848]
[1641701664687,1.97813149,142.68,142.59,58.9848]
[1641701664889,1.97813149,142.67,142.59,58.9848]
[1641701665687,1.97813149,142.67,142.6,3.0]
[1641701665888,1.97813149,142.67,142.62,10.5168]
[1641701667090,1.97813149,142.67,142.62,20.6368]
[1641701667291,1.97813149,142.67,142.65,10.5121]
[1641701667491,3.149e-05,142.67,142.65,15.7241]
[1641701667690,3.149e-05,142.67,142.65,25.8441]
[1641701667890,3.97100777,142.73,142.65,50.3703]
[1641701668496,3.97100777,142.73,142.69,10.5111]
[1641701668691,3.97100777,142.73,142.67,29.46826139]
[1641701668692,3.97100777,142.73,142.68,6.118]
[1641701668892,22.6556,142.75,142.68,9.118]
[1641701669493,22.6556,142.75,142.7,10.5104]
[1641701669695,28.18410777,142.76,142.7,10.5104]
[1641701670097,24.2131,142.76,142.7,10.5104]
[1641701670495,24.2131,142.76,142.7,38.56703243]
[1641701670696,39.17220777,142.78,142.71,10.5101]
[1641701671298,39.17220777,142.78,142.71,16.5061]
[1641701671697,35.2012,142.78,142.71,16.5061]
[1641701672600,153.37253024,142.81,142.71,5.996]
[1641701672798,73.47323024,142.81,142.72,10.63]
[1641701672998,58.83835928,142.81,142.73,26.72195984]
[1641701673199,54.86735151,142.81,142.74,10.12]
[1641701673399,54.86735151,142.81,142.74,19.57]
[1641701674399,3.97100777,142.84,142.74,19.57]
[1641701674600,3.97100777,142.84,142.79,10.5036]
[1641701674798,3.97100777,142.84,142.79,18.6806]
[1641701675204,38.01460777,142.87,142.79,18.6806]
[1641701676499,3.0,142.86,142.79,18.6806]
[1641701676700,13.5044,142.86,142.79,18.6806]
[1641701676900,13.5044,142.86,142.79,10.5036]
[1641701677300,13.5044,142.86,142.77,89.87]
[1641701678003,13.5044,142.86,142.77,79.365]
[1641701678202,13.5044,142.86,142.77,101.83078538]
[1641701678402,3.0,142.86,142.79,10.5041]
[1641701679313,13.5048,142.86,142.78,10.5048]
[1641701679902,13.5048,142.86,142.77,79.365]
[1641701680204,13.5048,142.86,142.76,23.9709]
[1641701680402,14.76821579,142.86,142.74,20.6278]
[1641701680624,14.76821579,142.86,142.74,10.12]
[1641701681003,32.13125379,142.86,142.71,10.12]
[1641701681202,33.0921,142.85,142.72,28.73688959]
[1641701681405,41.00283545,142.85,142.72,28.73688959]
[1641701681604,1.26341579,142.84,142.72,28.73688959]
[1641701681802,1.26341579,142.84,142.72,39.24568959]
[1641701682204,11.77321579,142.84,142.72,28.73688959]
[1641701682404,11.77321579,142.84,142.72,53.28248959]
[1641701684108,11.77321579,142.84,142.72,24.5456]
[1641701684309,10.5114,142.82,142.7,72.8288]
[1641701684508,33.7682,142.82,142.7,72.8288]
[1641701684708,1.26341579,142.81,142.69,10.12]
[1641701685110,1.26341579,142.81,142.7,26.78800604]
[1641701685409,10.5121,142.8,142.7,26.78800604]
[1641701692351,17.4311,142.8,142.7,26.78800604]
[1641701692551,1.26341579,142.79,142.67,10.12]
[1641701692751,35.99471579,142.79,142.67,10.12]
[1641701693556,1.26341579,142.78,142.67,10.12]
[1641701693958,1.26341579,142.78,142.65,72.1952]
[1641701694752,15.75182356,142.78,142.65,72.1952]
[1641701695353,24.0776,142.77,142.65,95.5092]
[1641701695553,59.1293,142.77,142.65,95.5092]
[1641701696058,10.5156,142.76,142.65,95.5092]
[1641701697258,10.5156,142.76,142.66,0.26]
[1641701698762,10.5156,142.76,142.66,10.7737]
[1641701698959,10.5156,142.76,142.67,23.95540963]
[1641701701059,10.5156,142.76,142.65,95.5092]
[1641701701262,24.8654,142.75,142.65,95.5092]
[1641701701460,10.5148,142.74,142.65,106.0235]
[1641701701659,10.5148,142.74,142.65,95.5092]
[1641701701892,24.8654,142.75,142.66,25.9832372]
[1641701702393,10.5129,142.75,142.67,10.7725]
[1641701702594,3.97100777,142.78,142.67,0.26]
[1641701702796,28.66340777,142.78,142.67,23.329]
[1641701702993,29.92682356,142.78,142.67,23.329]
[1641701703595,53.80961961,142.78,142.69,25.86855127]
[1641701703798,43.29731961,142.78,142.7,10.12]
[1641701703994,28.66340777,142.78,142.7,10.12]
[1641701704394,28.66340777,142.78,142.7,13.12]
[1641701704595,24.6924,142.78,142.73,10.5085]
[1641701704794,23.9447,142.79,142.74,23.99496967]
[1641701704996,3.97100777,142.82,142.74,23.99496967]
[1641701706996,7.93038473,142.82,142.74,23.99496967]
[1641701707898,7.93038473,142.82,142.74,32.03896967]
[1641701708398,3.97100777,142.81,142.75,0.26]
[1641701709198,5.96632432,142.84,142.76,10.12]
[1641701709199,3.97100777,142.84,142.76,10.12]
[1641701709399,3.97100777,142.84,142.77,27.11722938]
[1641701709600,3.97100777,142.84,142.78,10.12]
[1641701710000,3.97100777,142.84,142.79,0.26]
[1641701710202,3.97100777,142.84,142.82,37.98045514]
[1641701710401,3.97100777,142.87,142.8,10.12]
[1641701711402,3.97100777,142.88,142.8,10.12]
[1641701711807,3.97100777,142.88,142.77,25.47594135]
[1641701712202,5.2314894,142.88,142.77,25.47594135]
[1641701712402,15.7356894,142.88,142.79,10.5041]
[1641701712603,3.97100777,142.86,142.79,10.5041]
[1641701713203,3.97100777,142.86,142.8,30.13578706]
[1641701713402,7.93062995,142.87,142.8,30.13578706]
[1641701713602,18.43542995,142.87,142.8,30.13578706]
[1641701714003,14.47580777,142.87,142.8,30.13578706]
[1641701715705,14.47580777,142.87,142.77,33.8101]
[1641701715905,15.7362894,142.87,142.76,23.0344]
[1641701716503,39.6838894,142.87,142.76,23.0344]
[1641701716703,39.6838894,142.87,142.76,46.14153695]
[1641701717103,3.97100777,142.85,142.76,23.10713695]
[1641701717304,14.47890777,142.85,142.76,23.10713695]
[1641701719305,14.47890777,142.85,142.76,46.51693695]
[1641701719905,3.97100777,142.85,142.77,0.26]
[1641701720106,27.91860777,142.87,142.77,0.26]
[1641701720306,3.97100777,142.87,142.77,0.51]
[1641701720505,3.97100777,142.87,142.78,10.12]
[1641701720906,81.87580777,142.89,142.79,0.26]
[1641701721509,81.87580777,142.89,142.8,35.0026]
[1641701721708,3.97100777,142.89,142.8,35.0026]
[1641701721908,3.97100777,142.89,142.8,38.0026]
[1641701722112,3.97100777,142.89,142.8,35.0026]
[1641701722309,3.97100777,142.89,142.84,10.5005]
[1641701722509,3.97100777,142.89,142.84,24.27182927]
[1641701723509,14.47290777,142.89,142.81,99.0186]
[1641701724312,14.47290777,142.89,142.81,76.1121]
[1641701724510,7.92262544,142.88,142.82,22.79240522]
[1641701725811,7.92262544,142.88,142.82,33.29430522]
[1641701726711,7.92262544,142.88,142.82,22.79240522]
[1641701726913,7.92262544,142.88,142.83,10.5012]
[1641701727512,3.97100777,142.88,142.83,10.5012]
[1641701728211,3.97100777,142.88,142.84,10.5005]
[1641701729015,7.92262544,142.89,142.82,22.79240522]
[1641701729412,7.92262544,142.89,142.86,10.4989]
[1641701729612,7.92262544,142.89,142.83,0.26]
[1641701729816,7.92262544,142.91,142.83,0.26]
[1641701730614,7.92262544,142.91,142.84,10.12]
[1641701730914,7.92262544,142.91,142.85,0.26]
[1641701731118,7.92262544,142.91,142.85,10.38]
[1641701731318,7.92262544,142.94,142.85,10.38]
[1641701731519,7.92262544,142.94,142.85,45.3703]
[1641701731716,7.92262544,142.94,142.85,10.12]
[1641701732319,3.97100777,142.95,142.85,10.12]
[1641701732517,3.97100777,142.95,142.89,10.4966]
[1641701732717,3.97100777,142.95,142.85,45.1085]
[1641701733126,3.97100777,142.93,142.85,10.12]
[1641701734218,14.47050777,142.93,142.85,10.12]
[1641701734718,3.97100777,142.92,142.85,10.12]
[1641701735319,14.47080777,142.92,142.85,10.12]
[1641701735550,14.47080777,142.92,142.82,23.3227]
[1641701735751,15.7312894,142.92,142.81,76.1121]
[1641701735952,15.7312894,142.92,142.77,10.12]
[1641701736152,58.3654,142.91,142.77,10.12]
[1641701736451,3.97100777,142.89,142.77,10.12]
[1641701736851,1.26048163,142.88,142.77,10.12]
[1641701737253,3.97100777,142.86,142.77,10.12]
[1641701738155,10.5071,142.85,142.77,10.12]
[1641701738654,14.47810777,142.85,142.77,10.12]
[1641701740254,10.5071,142.85,142.77,10.12]
[1641701741055,10.5042,142.86,142.77,10.12]
[1641701741256,3.97100777,142.87,142.77,10.12]
[1641701741658,3.97100777,142.87,142.78,0.26]
[1641701741855,3.97100777,142.87,142.78,10.38]
[1641701742056,3.97100777,142.87,142.78,16.853]
[1641701742661,3.97100777,142.88,142.78,16.853]
[1641701743460,3.97100777,142.89,142.78,16.853]
[1641701743859,14.47310777,142.89,142.82,41.30891409]
[1641701745460,14.47310777,142.89,142.82,30.80681409]
[1641701745861,10.5021,142.89,142.82,30.80681409]
[1641701746260,10.5021,142.89,142.79,23.4874]
[1641701746461,14.47310777,142.89,142.79,23.4874]
[1641701746861,69.30190439,142.89,142.79,23.4874]
[1641701747260,7.93160448,142.88,142.81,10.5023]
[1641701747461,7.93160448,142.88,142.8,23.49142754]
[1641701748061,3.97100777,142.88,142.8,33.61142754]
[1641701749861,3.97100777,142.88,142.83,10.5009]
[1641701750365,3.97100777,142.88,142.8,33.61142754]
[1641701751065,3.97100777,142.88,142.78,23.7084]
[1641701751271,9.19208611,142.88,142.77,77.661]
[1641701751469,62.77038685,142.88,142.77,77.661]
[1641701751868,62.77038685,142.88,142.78,30.09127421]
[1641701752268,3.97100777,142.86,142.78,30.09127421]
[1641701752468,10.5062,142.85,142.78,30.09127421]
[1641701752970,14.47720777,142.85,142.78,30.09127421]
[1641701754871,3.0,142.84,142.78,30.09127421]
[1641701755072,3.97100777,142.85,142.78,30.09127421]
[1641701755371,3.97100777,142.85,142.79,0.26]
[1641701755574,3.97100777,142.85,142.79,3.26]
[1641701755972,3.97100777,142.85,142.84,10.4998]
[1641701756571,5.96632432,142.88,142.84,10.4998]
[1641701756572,3.97100777,142.88,142.84,10.4998]
[1641701757174,3.97100777,142.88,142.85,10.4998]
[1641701757376,7.93197392,142.89,142.85,10.4998]
[1641701758175,7.93197392,142.89,142.84,33.39829946]
[1641701758372,7.93197392,142.89,142.84,22.89829946]
[1641701758773,18.43307392,142.89,142.8,32.6827]
[1641701758975,10.5011,142.89,142.8,32.6827]
[1641701759674,10.5011,142.89,142.81,23.44756297]
[1641701759874,10.5011,142.89,142.81,33.95016297]
[1641701760074,3.96096615,142.88,142.81,23.44756297]
[1641701761175,3.97100777,142.88,142.8,22.5627]
[1641701761376,14.47300777,142.88,142.82,10.5017]
[1641701762175,14.47300777,142.88,142.8,45.72884521]
[1641701762376,14.47300777,142.88,142.78,10.12]
[1641701762976,3.0,142.87,142.78,10.12]
[1641701763178,13.5064,142.87,142.78,10.12]
[1641701763479,3.97100777,142.85,142.78,35.95700367]
[1641701764079,18.43966924,142.85,142.78,35.95700367]
[1641701764978,14.47490777,142.85,142.78,10.12]
[1641701765177,14.47490777,142.85,142.77,77.661]
[1641701765378,14.47490777,142.85,142.72,57.296]
[1641701765580,45.30892023,142.85,142.72,10.12]
[1641701765779,44.92502023,142.85,142.72,10.12]
[1641701765979,44.92502023,142.85,142.72,39.45201534]
[1641701766178,79.95892023,142.85,142.72,39.45201534]
[1641701766577,3.0,142.84,142.72,39.45201534]
[1641701766778,3.97100777,142.81,142.72,39.45201534]
[1641701767779,10.5106,142.8,142.72,39.45201534]
[1641701769981,10.5106,142.8,142.72,10.12]
[1641701771184,10.5148,142.78,142.69,111.7387]
[1641701771384,24.68771246,142.8,142.69,10.12]
[1641701772285,35.20151246,142.8,142.7,31.53615815]
[1641701772685,3.0,142.79,142.7,31.53615815]
[1641701773585,13.5125,142.79,142.7,31.53615815]
[1641701774286,10.5125,142.79,142.71,0.26]
[1641701774693,10.5125,142.79,142.71,3.26]
[1641701775087,10.5125,142.79,142.73,10.5083]
[1641701775287,10.5075,142.8,142.73,10.12]
[1641701775487,35.0289,142.82,142.73,10.12]
[1641701775688,35.0321,142.81,142.73,10.12]
[1641701775890,105.05610777,142.84,142.73,10.12]
[1641701776493,115.56520777,142.84,142.73,10.12]
[1641701776891,116.82992023,142.84,142.73,10.12]
[1641701777292,141.75672023,142.84,142.73,10.12]
[1641701777993,10.92855909,142.83,142.73,10.12]
[1641701778192,10.5092,142.82,142.73,10.12]
[1641701778795,10.5092,142.82,142.74,0.26]
[1641701778993,10.5092,142.82,142.74,3.26]
[1641701779797,10.5092,142.82,142.73,10.12]
[1641701781806,10.5094,142.8,142.73,10.12]
[1641701782004,3.0,142.79,142.73,10.12]
[1641701782406,24.861,142.82,142.73,10.12]
[1641701782707,3.0,142.81,142.73,10.12]
[1641701782909,10.509,142.8,142.73,10.12]
[1641701787633,12.48918247,142.8,142.73,10.12]
[1641701788934,1.98018247,142.8,142.73,10.12]
[1641701789132,1.98018247,142.8,142.73,20.6285]
[1641701789331,1.98018247,142.8,142.73,10.12]
[1641701790135,12.48818247,142.8,142.73,10.12]
[1641701791340,1.98018247,142.79,142.73,10.12]
[1641701791540,12.48948247,142.79,142.73,10.12]
[1641701791937,1.98018247,142.79,142.73,10.12]
[1641701792137,1.98018247,142.78,142.73,10.12]
[1641701792937,12.48918247,142.79,142.73,10.12]
[1641701793342,1.98018247,142.79,142.73,10.12]
[1641701793540,1.98018247,142.79,142.78,10.505]
[1641701793741,3.97100777,142.82,142.78,34.21152657]
[1641701793938,3.97100777,142.82,142.78,23.70652657]
[1641701794340,3.97100777,142.86,142.78,23.70652657]
[1641701794539,3.97100777,142.86,142.8,35.0009]
[1641701794941,3.97100777,142.86,142.83,10.5013]
[1641701795439,6.06431425,142.85,142.79,23.0926]
[1641701795841,6.06431425,142.85,142.8,3.0]
[1641701796037,6.06431425,142.85,142.79,23.0926]
[1641701796238,6.06431425,142.85,142.79,33.5963]
[1641701797645,6.06431425,142.85,142.8,10.5034]
[1641701797946,6.06431425,142.85,142.79,23.0926]
[1641701798346,6.06431425,142.85,142.8,3.0]
[1641701799751,61.96060777,142.89,142.82,10.5016]
[1641701800051,51.45860777,142.89,142.82,10.5016]
[1641701800655,51.45860777,142.89,142.8,79.1055]
[1641701800853,51.45860777,142.89,142.84,10.5001]
[1641701801053,3.97100777,142.89,142.84,10.5001]
[1641701801253,3.97100777,142.89,142.81,23.763]
[1641701801455,3.97100777,142.89,142.82,3.0]
[1641701801655,14.47240777,142.89,142.82,3.0]
[1641701801854,14.47240777,142.89,142.82,10.5018]
[1641701802355,14.47240777,142.89,142.8,76.1055]
[1641701802555,14.47240777,142.89,142.81,3.0]
[1641701802754,14.47240777,142.89,142.8,76.1055]
[1641701803774,18.43343375,142.88,142.8,76.1055]
[1641701804178,10.5031,142.88,142.8,86.6086]
[1641701806078,10.5031,142.88,142.8,76.1055]
[1641701806680,10.5031,142.88,142.81,3.0]
[1641701807783,10.5031,142.88,142.82,10.5016]
[1641701807982,10.5031,142.88,142.8,76.1055]
[1641701809086,10.5031,142.88,142.8,86.6088]
[1641701809686,14.47410777,142.88,142.8,86.6088]
[1641701810485,14.47410777,142.88,142.8,10.5033]
[1641701811288,14.47410777,142.88,142.79,24.3197]
[1641701811488,15.7362979,142.88,142.79,24.3197]
[1641701811689,15.7362979,142.88,142.74,10.12]
[1641701811898,78.31625901,142.87,142.75,23.7466]
[1641701812092,96.75229409,142.87,142.75,23.7466]
[1641701812591,38.0202,142.86,142.76,37.64800786]
[1641701812992,45.94933508,142.86,142.76,37.64800786]
[1641701813193,10.5061,142.85,142.76,37.64800786]
[1641701813595,34.8848,142.85,142.76,37.64800786]
[1641701813893,34.8848,142.85,142.76,27.14160786]
[1641701814496,38.85580777,142.85,142.76,27.14160786]
[1641701815094,38.85580777,142.85,142.76,37.64770786]
[1641701815294,38.85580777,142.85,142.76,27.14160786]
[1641701817295,38.85580777,142.85,142.76,37.64800786]
[1641701817496,38.85580777,142.85,142.76,27.14160786]
[1641701818495,3.0,142.84,142.78,10.5045]
[1641701818698,13.5047,142.84,142.78,10.5045]
[1641701819897,10.5047,142.84,142.77,10.5058]
[1641701820296,10.5047,142.84,142.76,27.14160786]
[1641701820697,10.5047,142.84,142.76,37.26160786]
[1641701821098,10.5047,142.84,142.78,10.5046]
[1641701821298,10.5047,142.84,142.77,3.26]
[1641701821700,10.5047,142.84,142.77,3.0]
[1641701821899,10.5047,142.84,142.76,37.26160786]
[1641701822303,10.5047,142.84,142.76,47.76760786]
[1641701822500,10.5047,142.84,142.76,37.26160786]
[1641701822700,10.5041,142.85,142.77,3.0]
[1641701823103,14.47510777,142.85,142.77,3.0]
[1641701823505,14.47510777,142.85,142.79,10.5037]
[1641701823904,10.5041,142.85,142.79,10.5037]
[1641701824605,10.5041,142.85,142.77,3.0]
[1641701824606,14.47510777,142.85,142.77,13.5052]
[1641701825004,14.47510777,142.85,142.77,3.0]
[1641701825403,14.47510777,142.85,142.76,37.26160786]
[1641701825819,14.47510777,142.85,142.77,10.5055]
[1641701826321,14.47510777,142.85,142.76,37.26160786]
[1641701826521,14.47510777,142.85,142.77,3.0]
[1641701827524,14.47510777,142.85,142.76,37.26160786]
[1641701827724,14.47510777,142.85,142.77,3.0]
[1641701827924,14.47510777,142.85,142.78,10.505]
[1641701828425,14.47510777,142.85,142.77,3.0]
[1641701828826,14.47510777,142.85,142.77,13.5053]
[1641701829129,14.47510777,142.85,142.77,3.0]
[1641701829342,3.0,142.84,142.76,37.26160786]
[1641701829542,13.5051,142.84,142.76,37.26160786]
[1641701830550,10.5051,142.84,142.76,10.12]
[1641701831449,3.92093971,142.83,142.76,10.12]
[1641701831649,10.5083,142.82,142.76,10.12]
[1641701833854,10.0083,142.82,142.76,10.12]
[1641701834355,14.47700777,142.83,142.76,10.12]
[1641701834957,10.506,142.83,142.76,10.12]
[1641701835961,14.47700777,142.83,142.76,10.12]
[1641701836160,3.97100777,142.83,142.76,10.12]
[1641701836562,14.47630777,142.84,142.77,3.0]
[1641701836964,14.47630777,142.84,142.77,10.5056]
[1641701837163,14.47630777,142.84,142.75,23.7466]
[1641701837564,14.47630777,142.84,142.76,3.0]
[1641701838666,3.97251152,142.83,142.76,3.0]
[1641701838868,7.94351929,142.83,142.78,10.505]
[1641701839165,7.94351929,142.83,142.79,27.56155191]
[1641701839367,3.97100777,142.83,142.79,35.06255191]
[1641701839569,3.97100777,142.85,142.79,35.06255191]
[1641701839767,3.97100777,142.85,142.8,0.26]
[1641701839966,3.97100777,142.85,142.78,10.12]
[1641701840168,3.97100777,142.85,142.76,10.12]
[1641701840470,10.5046,142.85,142.76,10.12]
[1641701840698,3.0,142.84,142.76,10.12]
[1641701840892,26.6783,142.84,142.76,10.12]
[1641701841100,26.6783,142.84,142.75,30.21809975]
[1641701841301,34.585765,142.84,142.75,30.21809975]
[1641701841895,45.095165,142.84,142.75,30.21809975]
[1641701842095,7.907465,142.83,142.75,30.21809975]
[1641701842895,7.907465,142.83,142.74,33.2899]
[1641701842896,10.5094,142.82,142.74,33.2899]
[1641701843098,35.1348,142.82,142.74,10.12]
[1641701844096,39.10580777,142.82,142.74,37.53380308]
[1641701845098,35.1348,142.82,142.74,37.53380308]
[1641701845299,35.1348,142.82,142.74,27.41380308]
[1641701847400,35.1348,142.82,142.73,72.0319]
[1641701847601,35.1348,142.82,142.71,20.63]
[1641701848401,39.10580777,142.82,142.73,23.34281214]
[1641701849406,39.10580777,142.82,142.72,23.9418]
[1641701849807,10.514,142.81,142.67,10.12]
[1641701850005,10.514,142.81,142.67,33.5481]
[1641701850006,96.3291,142.81,142.67,33.5481]
[1641701850207,106.4491,142.81,142.67,33.5481]
[1641701850405,102.62202689,142.81,142.67,10.12]
[1641701850606,24.2212,142.8,142.66,75.6591]
[1641701850809,10.12,142.79,142.66,75.6591]
[1641701851006,14.09100777,142.79,142.66,75.6591]
[1641701851408,23.7555,142.78,142.66,75.6591]
[1641701851605,37.2717,142.78,142.66,75.6591]
[1641701852808,41.24270777,142.78,142.66,75.6591]
[1641701853509,37.2717,142.78,142.66,75.6591]
[1641701853707,32.8325,142.78,142.64,10.12]
[1641701853910,11.38641659,142.77,142.6,107.8656]
[1641701854108,35.0625,142.76,142.6,84.1179]
[1641701854310,34.275,142.75,142.6,73.9979]
[1641701854509,48.51334348,142.75,142.6,73.9979]
[1641701854710,48.51334348,142.75,142.61,29.34420147]
[1641701854908,10.5226,142.69,142.61,29.34420147]
[1641701857212,10.5226,142.69,142.61,28.84420147]
[1641701859716,10.5226,142.69,142.6,84.1179]
[1641701860517,3.0,142.68,142.6,84.1179]
[1641701860818,24.4462,142.71,142.61,30.87490734]
[1641701861018,24.4462,142.71,142.61,55.55780734]
[1641701861918,10.517,142.69,142.62,10.5165]
[1641701862318,10.517,142.69,142.61,55.55780734]
[1641701863627,10.517,142.69,142.61,30.87490734]
[1641701865530,10.517,142.69,142.6,84.1179]
[1641701867554,11.78341659,142.69,142.6,84.1179]
[1641701867755,10.5197,142.66,142.6,84.1179]
[1641701867955,10.5197,142.66,142.6,10.12]
[1641701869155,10.5197,142.66,142.59,23.3804]
[1641701869355,10.5197,142.66,142.57,73.2682]
[1641701869655,11.78611659,142.66,142.57,73.2682]
[1641701870056,35.17211659,142.66,142.57,73.2682]
[1641701870356,49.81834225,142.66,142.57,73.2682]
[1641701871459,3.0,142.65,142.57,73.2682]
[1641701871658,10.5245,142.62,142.57,73.2682]
[1641701871858,10.5245,142.62,142.56,23.2513]
[1641701878565,10.5245,142.62,142.54,10.12]
[1641701878767,11.79035025,142.62,142.53,78.5349]
[1641701878967,11.79035025,142.62,142.5,10.12]
[1641701879170,22.8628,142.61,142.5,10.12]
[1641701879368,10.5273,142.6,142.5,10.12]
[1641701879570,23.4484,142.59,142.51,51.72591341]
[1641701880875,35.0831,142.63,142.52,10.63]
[1641701881074,35.0831,142.63,142.54,22.49600236]
[1641701881274,96.6425,142.64,142.54,22.49600236]
[1641701881475,22.5439,142.63,142.55,22.8666]
[1641701881877,54.93269903,142.66,142.55,22.8666]
[1641701882075,10.12,142.67,142.55,99.833]
[1641701882275,10.5233,142.63,142.55,99.833]
[1641701884782,10.5233,142.63,142.55,76.9664]
[1641701885705,35.5016,142.63,142.55,76.9664]
[1641701892511,3.0,142.62,142.55,76.9664]
[1641701892809,13.524,142.62,142.52,10.12]
[1641701893008,1.26585025,142.61,142.5,23.5502]
[1641701893214,26.09625025,142.61,142.5,26.5502]
[1641701893815,26.09625025,142.61,142.51,23.02748839]
[1641701894215,10.5265,142.6,142.51,23.02748839]
[1641701894819,24.8304,142.61,142.51,23.02748839]
[1641701895119,24.8304,142.61,142.52,23.9068]
[1641701895818,35.3545,142.61,142.52,23.9068]
[1641701900725,3.0,142.6,142.52,23.9068]
[1641701900923,10.5267,142.59,142.52,23.9068]
[1641701903326,10.5267,142.59,142.5,10.12]
[1641701904129,33.169,142.59,142.5,10.12]
[1641701904929,34.43485025,142.59,142.5,10.12]
[1641701905331,34.43485025,142.59,142.49,48.3108]
[1641701905529,34.43485025,142.59,142.48,73.3529]
[1641701905530,41.59885025,142.59,142.48,73.3529]
[1641701905732,41.59885025,142.59,142.45,3.75892623]
[1641701905733,42.63550714,142.58,142.45,3.75892623]
[1641701905931,22.7136,142.57,142.44,3.75892623]